fUSD/lending_fUSD_20240105
["ID","MTS","AMOUNT","RATE_DAILY","PERIOD"]
[310308625,1704471075333,-500.0,0.0003041,2]
[310308626,1704471075343,-500.0,0.0003041,2]
[310308627,1704471075353,-500.0,0.0003041,2]
[310308628,1704471075362,-574.2981879,0.0003041,2]
[310308629,1704471075371,-500.0,0.0003041,2]
[310308630,1704471075380,-572.06,0.0003041,2]
[310308631,1704471075390,-1754.66,0.0003041,2]
[310308632,1704471075399,-737.83,0.0003041,2]
[310308633,1704471075409,-500.0,0.0003041,2]
[310308634,1704471075418,-500.0,0.0003041,2]
[310308635,1704471075428,-500.0,0.0003041,2]
[310308636,1704471075437,-500.0,0.0003041,2]
[310308637,1704471075447,-647.46,0.0003041,2]
[310308638,1704471075457,-500.0,0.0003041,2]
[310308639,1704471075469,-500.0,0.0003041,2]
[310308640,1704471075478,-500.0,0.0003041,2]
[310308641,1704471075489,-500.0,0.0003041,2]
[310308642,1704471075498,-500.0,0.0003041,2]
[310308643,1704471075508,-500.0,0.0003041,2]
[310308644,1704471075518,-614.06,0.0003041,2]
[310308645,1704471075527,-500.0,0.0003041,2]
[310308646,1704471075537,-672.73,0.0003041,2]
[310308647,1704471075546,-500.0,0.0003041,2]
[310308648,1704471075555,-500.0,0.0003041,2]
[310308649,1704471075565,-500.0,0.0003041,2]
[310308650,1704471075575,-500.0,0.0003041,2]
[310308651,1704471075583,-500.0,0.0003041,2]
[310308652,1704471075593,-500.0,0.0003041,2]
[310308653,1704471075602,-762.69,0.0003041,2]
[310308654,1704471075612,-500.0,0.0003041,2]
[310308655,1704471075621,-500.0,0.0003041,2]
[310308656,1704471075631,-500.0,0.0003041,2]
[310308657,1704471075640,-500.0,0.0003041,2]
[310308658,1704471075650,-500.0,0.0003041,2]
[310308659,1704471075659,-500.0,0.0003041,2]
[310308660,1704471075669,-500.0,0.0003041,2]
[310308661,1704471075678,-503.25307939,0.0003041,2]
[310308662,1704471075688,-553.22,0.0003041,2]
[310308663,1704471075697,-500.0,0.0003041,2]
[310308664,1704471075708,-500.0,0.0003041,2]
[310308665,1704471075720,-500.0,0.0003041,2]
[310308666,1704471075730,-1134.29,0.0003041,2]
[310308667,1704471075740,-539.04,0.0003041,2]
[310308668,1704471075756,-500.0,0.0003041,2]
[310308669,1704471075766,-500.0,0.0003041,2]
[310308670,1704471075778,-1649.86,0.0003041,2]
[310308671,1704471075788,-261.63647551,0.0003041,2]
[310308672,1704471075798,-500.0,0.0003041,2]
[310308673,1704471075807,-500.0,0.0003041,2]
[310308674,1704471075818,-500.0,0.0003041,2]
[310308675,1704471075827,-500.0,0.0003041,2]
[310308676,1704471075837,-500.0,0.0003041,2]
[310308677,1704471075848,-500.0,0.0003041,2]
[310308678,1704471075858,-835.39,0.0003041,2]
[310308679,1704471075868,-500.0,0.0003041,2]
[310308680,1704471075878,-1069.61,0.0003041,2]
[310308681,1704471075886,-536.06,0.0003041,2]
[310308682,1704471075896,-500.0,0.0003041,2]
[310308683,1704471075905,-500.0,0.0003041,2]
[310308684,1704471075914,-500.0,0.0003041,2]
[310308685,1704471075924,-628.4,0.0003041,2]
[310308686,1704471075933,-500.0,0.0003041,2]
[310308687,1704471075943,-500.0,0.0003041,2]
[310308688,1704471075952,-500.0,0.0003041,2]
[310308689,1704471075964,-555.52,0.0003041,2]
[310308690,1704471075973,-500.0,0.0003041,2]
[310308691,1704471075982,-500.0,0.0003041,2]
[310308692,1704471075992,-1238.6,0.0003041,2]
[310308693,1704471076002,-500.0,0.0003041,2]
[310308694,1704471076012,-500.0,0.0003041,2]
[310308695,1704471076022,-1117.69,0.0003041,2]
[310308696,1704471076032,-500.0,0.0003041,2]
[310308697,1704471076042,-500.0,0.0003041,2]
[310308698,1704471076051,-500.0,0.0003041,2]
[310308699,1704471076061,-500.0,0.0003041,2]
[310308700,1704471076070,-500.0,0.0003041,2]
[310308701,1704471076080,-1268.87,0.0003041,2]
[310308702,1704471076089,-500.0,0.0003041,2]
[310308703,1704471076099,-504.92828427,0.0003041,2]
[310308704,1704471076108,-500.0,0.0003041,2]
[310308705,1704471076118,-778.95,0.0003041,2]
[310308706,1704471076127,-500.0,0.0003041,2]
[310308707,1704471076136,-500.0,0.0003041,2]
[310308708,1704471076147,-500.0,0.0003041,2]
[310308709,1704471076157,-500.0,0.0003041,2]
[310308710,1704471076167,-500.0,0.0003041,2]
[310308711,1704471076177,-500.0,0.0003041,2]
[310308712,1704471076186,-500.0,0.0003041,2]
[310308713,1704471076195,-500.0,0.0003041,2]
[310308714,1704471076205,-500.0,0.0003041,2]
[310308715,1704471076217,-500.0,0.0003041,2]
[310308716,1704471076226,-500.0,0.0003041,2]
[310308717,1704471076236,-500.0,0.0003041,2]
[310308718,1704471076245,-500.16,0.0003041,2]
[310308719,1704471076255,-500.0,0.0003041,2]
[310308720,1704471076265,-500.0,0.0003041,2]
[310308721,1704471076285,-500.0,0.0003041,2]
[310308722,1704471076298,-500.0,0.0003041,2]
[310308723,1704471076308,-581.08042136,0.0003041,2]
[310308724,1704471076319,-500.0,0.0003041,2]
[310308725,1704471076329,-500.0,0.0003041,2]
[310308726,1704471076339,-576.0,0.0003041,2]
[310308727,1704471076349,-500.0,0.0003041,2]
[310308728,1704471076359,-1162.79,0.0003041,2]
[310308729,1704471076368,-500.0,0.0003041,2]
[310308730,1704471076377,-500.0,0.0003041,2]
[310308731,1704471076386,-500.0,0.0003041,2]
[310308732,1704471076396,-500.0,0.0003041,2]
[310308733,1704471076405,-500.0,0.0003041,2]
[310308734,1704471076414,-500.0,0.0003041,2]
[310308735,1704471076424,-500.0,0.0003041,2]
[310308736,1704471076433,-500.0,0.0003041,2]
[310308737,1704471076442,-500.0,0.0003041,2]
[310308738,1704471076452,-774.96,0.0003041,2]
[310308739,1704471076461,-500.0,0.0003041,2]
[310308740,1704471076473,-500.0,0.0003041,2]
[310308741,1704471076483,-588.43763223,0.0003041,2]
[310308742,1704471076494,-822.37,0.0003041,2]
[310308743,1704471076504,-500.0,0.0003041,2]
[310308744,1704471076513,-500.0,0.0003041,2]
[310308745,1704471076523,-500.0,0.0003041,2]
[310308746,1704471076532,-500.0,0.0003041,2]
[310308747,1704471076541,-500.0,0.0003041,2]
[310308748,1704471076551,-500.0,0.0003041,2]
[310308749,1704471076561,-500.0,0.0003041,2]
[310308750,1704471076571,-500.0,0.0003041,2]
[310308751,1704471076580,-541.67,0.0003041,2]
[310308752,1704471076590,-500.0,0.0003041,2]
[310308753,1704471076599,-500.0,0.0003041,2]
[310308754,1704471076609,-500.0,0.0003041,2]
[310308755,1704471076618,-500.0,0.0003041,2]
[310308756,1704471076627,-500.0,0.0003041,2]
[310308757,1704471076637,-500.0,0.0003041,2]
[310308758,1704471076646,-1372.88,0.0003041,2]
[310308759,1704471076655,-500.0,0.0003041,2]
[310308760,1704471076665,-753.94,0.0003041,2]
[310308761,1704471076674,-500.0,0.0003041,2]
[310308762,1704471076684,-500.0,0.0003041,2]
[310308763,1704471076693,-500.0,0.0003041,2]
[310308764,1704471076702,-500.0,0.0003041,2]
[310308765,1704471076714,-500.0,0.0003041,2]
[310308766,1704471076723,-653.2,0.0003041,2]
[310308767,1704471076733,-500.0,0.0003041,2]
[310308768,1704471076743,-515.93,0.0003041,2]
[310308769,1704471076753,-629.00600516,0.0003041,2]
[310308770,1704471076763,-500.0,0.0003041,2]
[310308771,1704471076772,-500.0,0.0003041,2]
[310308772,1704471076781,-500.0,0.0003041,2]
[310308773,1704471077015,-1253.1,0.0003041,2]
[310308774,1704471077025,-500.0,0.0003041,2]
[310308775,1704471077036,-500.0,0.0003041,2]
[310308776,1704471077046,-727.02,0.0003041,2]
[310308777,1704471077056,-500.0,0.0003041,2]
[310308778,1704471077066,-500.0,0.0003041,2]
[310308779,1704471077076,-500.0,0.0003041,2]
[310308780,1704471077086,-1238.19,0.0003041,2]
[310308781,1704471077096,-772.08,0.0003041,2]
[310308782,1704471077106,-500.0,0.0003041,2]
[310308783,1704471077116,-500.0,0.0003041,2]
[310308784,1704471077126,-500.0,0.0003041,2]
[310308785,1704471077136,-500.0,0.0003041,2]
[310308786,1704471077145,-500.0,0.0003041,2]
[310308787,1704471077154,-484.38956731,0.0003041,2]
[310308788,1704471077164,-500.0,0.0003041,2]
[310308789,1704471077173,-695.57,0.0003041,2]
[310308790,1704471077182,-500.0,0.0003041,2]
[310308791,1704471077192,-947.64,0.0003041,2]
[310308792,1704471077201,-500.0,0.0003041,2]
[310308793,1704471077211,-500.0,0.0003041,2]
[310308794,1704471077222,-508.81102327,0.0003041,2]
[310308795,1704471077232,-644.36,0.0003041,2]
[310308796,1704471077242,-500.0,0.0003041,2]
[310308797,1704471077252,-662.68,0.0003041,2]
[310308798,1704471077261,-500.0,0.0003041,2]
[310308799,1704471077271,-500.0,0.0003041,2]
[310308800,1704471077280,-500.0,0.0003041,2]
[310308801,1704471077289,-500.0,0.0003041,2]
[310308802,1704471077299,-1000.0,0.0003041,2]
[310308803,1704471077309,-500.0,0.0003041,2]
[310308804,1704471077319,-500.0,0.0003041,2]
[310308805,1704471077328,-500.0,0.0003041,2]
[310308806,1704471077337,-500.0,0.0003041,2]
[310308807,1704471077347,-500.0,0.0003041,2]
[310308808,1704471077357,-500.0,0.0003041,2]
[310308809,1704471077366,-500.0,0.0003041,2]
[310308810,1704471077376,-500.0,0.0003041,2]
[310308811,1704471077385,-606.21,0.0003041,2]
[310308812,1704471077396,-500.0,0.0003041,2]
[310308813,1704471077405,-1236.18,0.0003041,2]
[310308814,1704471077415,-500.0,0.0003041,2]
[310308815,1704471077424,-500.0,0.0003041,2]
[310308816,1704471077434,-500.0,0.0003041,2]
[310308817,1704471077443,-500.0,0.0003041,2]
[310308818,1704471077452,-500.0,0.0003041,2]
[310308819,1704471077462,-500.0,0.0003041,2]
[310308820,1704471077473,-500.0,0.0003041,2]
[310308821,1704471077482,-947.15,0.0003041,2]
[310308822,1704471077491,-506.18464196,0.0003041,2]
[310308823,1704471077500,-500.0,0.0003041,2]
[310308824,1704471077510,-500.0,0.0003041,2]
[310308825,1704471077519,-575.05903058,0.0003041,2]
[310308826,1704471077528,-500.0,0.0003041,2]
[310308827,1704471077537,-500.0,0.0003041,2]
[310308828,1704471077547,-500.0,0.0003041,2]
[310308829,1704471077556,-500.0,0.0003041,2]
[310308830,1704471077565,-500.0,0.0003041,2]
[310308831,1704471077574,-500.0,0.0003041,2]
[310308832,1704471077583,-500.0,0.0003041,2]
[310308833,1704471077594,-551.2629776,0.0003041,2]
[310308834,1704471077603,-454.23596674,0.0003041,2]
[310308835,1704471077612,-625.62,0.0003041,2]
[310308836,1704471077622,-500.0,0.0003041,2]
[310308837,1704471077632,-500.59,0.0003041,2]
[310308838,1704471077641,-500.0,0.0003041,2]
[310308839,1704471077651,-545.24,0.0003041,2]
[310308840,1704471077660,-637.82,0.0003041,2]
[310308841,1704471077670,-530.66,0.0003041,2]
[310308842,1704471077682,-500.0,0.0003041,2]
[310308843,1704471077691,-500.0,0.0003041,2]
[310308844,1704471077701,-500.0,0.0003041,2]
[310308845,1704471077711,-500.0,0.0003041,2]
[310308846,1704471077721,-500.0,0.0003041,2]
[310308847,1704471077730,-500.0,0.0003041,2]
[310308848,1704471077739,-500.0,0.0003041,2]
[310308849,1704471077749,-500.0,0.0003041,2]
[310308850,1704471077759,-500.0,0.0003041,2]
[310308851,1704471077769,-800.13,0.0003041,2]
[310308852,1704471077782,-150.0,0.0003041,2]
[310308853,1704471077792,-500.0,0.0003041,2]
[310308854,1704471077802,-500.0,0.0003041,2]
[310308855,1704471077811,-500.0,0.0003041,2]
[310308856,1704471077821,-500.0,0.0003041,2]
[310308857,1704471077830,-404.77893601,0.0003041,2]
[310308858,1704471077840,-500.0,0.0003041,2]
[310308859,1704471077850,-500.0,0.0003041,2]
[310308860,1704471077859,-500.0,0.0003041,2]
[310308861,1704471077869,-590.87251429,0.0003041,2]
[310308862,1704471077878,-500.0,0.0003041,2]
[310308863,1704471077888,-626.55,0.0003041,2]
[310308864,1704471077898,-500.0,0.0003041,2]
[310308865,1704471077906,-1387.56,0.0003041,2]
[310308866,1704471077913,-500.0,0.0003041,2]
[310308867,1704471077922,-500.0,0.0003041,2]
[310308868,1704471077931,-500.0,0.0003041,2]
[310308869,1704471077940,-500.0,0.0003041,2]
[310308870,1704471077950,-500.0,0.0003041,2]
[310308871,1704471077960,-500.0,0.0003041,2]
[310308872,1704471077970,-500.0,0.0003041,2]
[310308873,1704471077979,-1366.99,0.0003041,2]
[310308874,1704471077989,-500.0,0.0003041,2]
[310308875,1704471077998,-797.63,0.0003041,2]
[310308876,1704471078008,-500.0,0.0003041,2]
[310308877,1704471078018,-500.0,0.0003041,2]
[310308878,1704471078027,-500.0,0.0003041,2]
[310308879,1704471078038,-500.0,0.0003041,2]
[310308880,1704471078047,-500.0,0.0003041,2]
[310308881,1704471078057,-703.77,0.0003041,2]
[310308882,1704471078066,-500.0,0.0003041,2]
[310308883,1704471078075,-612.71059516,0.0003041,2]
[310308884,1704471078084,-500.0,0.0003041,2]
[310308885,1704471078093,-500.0,0.0003041,2]
[310308886,1704471078103,-503.44481492,0.0003041,2]
[310308887,1704471078112,-581.02,0.0003041,2]
[310308888,1704471078122,-1360.29,0.0003041,2]
[310308889,1704471078131,-500.0,0.0003041,2]
[310308890,1704471078140,-500.0,0.0003041,2]
[310308891,1704471078150,-500.0,0.0003041,2]
[310308892,1704471078159,-500.0,0.0003041,2]
[310308893,1704471078168,-500.0,0.0003041,2]
[310308894,1704471078178,-531.42,0.0003041,2]
[310308895,1704471078188,-700.18,0.0003041,2]
[310308896,1704471078197,-288.63777243,0.0003041,2]
[310308897,1704471078207,-500.0,0.0003041,2]
[310308898,1704471078217,-500.0,0.0003041,2]
[310308899,1704471078227,-500.0,0.0003041,2]
[310308900,1704471078236,-500.0,0.0003041,2]
[310308901,1704471078246,-500.0,0.0003041,2]
[310308902,1704471078255,-500.0,0.0003041,2]
[310308903,1704471078264,-500.0,0.0003041,2]
[310308904,1704471078274,-500.0,0.0003041,2]
[310308905,1704471078283,-500.0,0.0003041,2]
[310308906,1704471078292,-500.0,0.0003041,2]
[310308907,1704471078302,-500.0,0.0003041,2]
[310308908,1704471078311,-543.6822045,0.0003041,2]
[310308909,1704471078320,-1036.76,0.0003041,2]
[310308910,1704471078330,-813.88,0.0003041,2]
[310308911,1704471078339,-962.57,0.0003041,2]
[310308912,1704471078348,-500.0,0.0003041,2]
[310308913,1704471078357,-500.0,0.0003041,2]
[310308914,1704471078366,-1289.38,0.0003041,2]
[310308915,1704471078375,-500.0,0.0003041,2]
[310308916,1704471078385,-500.0,0.0003041,2]
[310308917,1704471078394,-500.0,0.0003041,2]
[310308918,1704471078403,-500.0,0.0003041,2]
[310308919,1704471078412,-4950.03,0.0003041,2]
[310308920,1704471078421,-500.0,0.0003041,2]
[310308921,1704471078430,-734.2,0.0003041,2]
[310308922,1704471078440,-500.0,0.0003041,2]
[310308923,1704471078449,-500.0,0.0003041,2]
[310308924,1704471078458,-500.0,0.0003041,2]
[310308925,1704471078468,-500.0,0.0003041,2]
[310308926,1704471078477,-500.0,0.0003041,2]
[310308927,1704471078486,-500.0,0.0003041,2]
[310308928,1704471078495,-444.13013741,0.0003041,2]
[310308929,1704471078505,-500.0,0.0003041,2]
[310308930,1704471078514,-500.0,0.0003041,2]
[310308931,1704471078523,-500.0,0.0003041,2]
[310308932,1704471078533,-500.0,0.0003041,2]
[310308933,1704471078541,-500.0,0.0003041,2]
[310308934,1704471078550,-712.3,0.0003041,2]
[310308935,1704471078560,-573.47,0.0003041,2]
[310308936,1704471078570,-635.42415158,0.0003041,2]
[310308937,1704471078579,-500.0,0.0003041,2]
[310308938,1704471078589,-834.43,0.0003041,2]
[310308939,1704471078598,-500.0,0.0003041,2]
[310308940,1704471078607,-500.0,0.0003041,2]
[310308941,1704471078617,-500.0,0.0003041,2]
[310308942,1704471078626,-500.0,0.0003041,2]
[310308943,1704471078636,-1459.15,0.0003041,2]
[310308944,1704471078645,-500.0,0.0003041,2]
[310308945,1704471078654,-500.0,0.0003041,2]
[310308946,1704471078663,-500.0,0.0003041,2]
[310308947,1704471078672,-753.46,0.0003041,2]
[310308948,1704471078682,-500.0,0.0003041,2]
[310308949,1704471078692,-500.0,0.0003041,2]
[310308950,1704471078702,-500.0,0.0003041,2]
[310308951,1704471078711,-500.0,0.0003041,2]
[310308952,1704471078722,-500.0,0.0003041,2]
[310308953,1704471078731,-547.17722715,0.0003041,2]
[310308954,1704471078740,-1169.4,0.0003041,2]
[310308955,1704471078750,-564.11,0.0003041,2]
[310308956,1704471078760,-598.84,0.0003041,2]
[310308957,1704471078770,-500.0,0.0003041,2]
[310308958,1704471078779,-500.0,0.0003041,2]
[310308959,1704471078788,-599.69953677,0.0003041,2]
[310308960,1704471078798,-500.0,0.0003041,2]
[310308961,1704471078807,-1096.24,0.0003041,2]
[310308962,1704471078817,-500.0,0.0003041,2]
[310308963,1704471078826,-1425.41,0.0003041,2]
[310308964,1704471078835,-500.0,0.0003041,2]
[310308965,1704471078845,-500.0,0.0003041,2]
[310308966,1704471078855,-6105.28,0.0003041,2]
[310308967,1704471078864,-2530.93,0.0003041,2]
[310308968,1704471078874,-500.0,0.0003041,2]
[310308969,1704471078883,-500.0,0.0003041,2]
[310308970,1704471078892,-500.0,0.0003041,2]
[310308971,1704471078902,-500.0,0.0003041,2]
[310308972,1704471078911,-500.0,0.0003041,2]
[310308973,1704471078920,-500.0,0.0003041,2]
[310308974,1704471078929,-500.0,0.0003041,2]
[310308975,1704471078939,-500.0,0.0003041,2]
[310308976,1704471078948,-500.0,0.0003041,2]
[310308977,1704471078958,-820.35,0.0003041,2]
[310308978,1704471078968,-328.29337418,0.0003041,2]
[310308979,1704471078977,-500.0,0.0003041,2]
[310308980,1704471078986,-500.0,0.0003041,2]
[310308981,1704471078995,-500.0,0.0003041,2]
[310308982,1704471079004,-1820.15,0.0003041,2]
[310308983,1704471079013,-500.0,0.0003041,2]
[310308984,1704471079022,-273.47593508,0.0003041,2]
[310308985,1704471079033,-1454.88,0.0003041,2]
[310308986,1704471079042,-500.0,0.0003041,2]
[310308987,1704471079056,-848.25,0.0003041,2]
[310308988,1704471079065,-500.0,0.0003041,2]
[310308989,1704471079075,-500.0,0.0003041,2]
[310308990,1704471079085,-3529.52,0.0003041,2]
[310308991,1704471079094,-500.0,0.0003041,2]
[310308992,1704471079104,-1261.77,0.0003041,2]
[310308993,1704471079113,-500.0,0.0003041,2]
[310308994,1704471079122,-500.0,0.0003041,2]
[310308995,1704471079132,-500.0,0.0003041,2]
[310308996,1704471079142,-500.0,0.0003041,2]
[310308997,1704471079151,-500.0,0.0003041,2]
[310308998,1704471079161,-673.04,0.0003041,2]
[310308999,1704471079170,-522.36,0.0003041,2]
[310309000,1704471079180,-500.0,0.0003041,2]
[310309001,1704471079189,-500.0,0.0003041,2]
[310309002,1704471079198,-8533.25,0.0003041,2]
[310309003,1704471079208,-500.0,0.0003041,2]
[310309004,1704471079219,-1207.05,0.0003041,2]
[310309005,1704471079228,-806.5,0.0003041,2]
[310309006,1704471079237,-543.14,0.0003041,2]
[310309007,1704471079246,-500.0,0.0003041,2]
[310309008,1704471079256,-2710.43,0.0003041,2]
[310309009,1704471079266,-500.0,0.0003041,2]
[310309010,1704471079276,-500.0,0.0003041,2]
[310309011,1704471079286,-731.44,0.0003041,2]
[310309012,1704471079295,-487.78170261,0.0003041,2]
[310309013,1704471079305,-500.0,0.0003041,2]
[310309014,1704471079314,-500.0,0.0003041,2]
[310309015,1704471079324,-500.0,0.0003041,2]
[310309016,1704471079333,-500.0,0.0003041,2]
[310309017,1704471079343,-500.0,0.0003041,2]
[310309018,1704471079353,-504.90931087,0.0003041,2]
[310309019,1704471079362,-519.5,0.0003041,2]
[310309020,1704471079372,-2046.64,0.0003041,2]
[310309021,1704471079381,-762.26,0.0003041,2]
[310309022,1704471079390,-1317.65,0.0003041,2]
[310309023,1704471079399,-500.0,0.0003041,2]
[310309024,1704471079408,-620.31,0.0003041,2]
[310309025,1704471079417,-5333.49,0.0003041,2]
[310309026,1704471079427,-500.0,0.0003041,2]
[310309027,1704471079436,-646.65206519,0.0003041,5]
[310309028,1704471079444,-500.0,0.0003041,2]
[310309029,1704471079454,-523.74001166,0.0003041,2]
[310309030,1704471079464,-500.0,0.0003041,2]
[310309031,1704471079474,-978.21,0.0003041,2]
[310309032,1704471079483,-1254.61,0.0003041,2]
[310309033,1704471079493,-500.0,0.0003041,2]
[310309034,1704471079502,-500.0,0.0003041,2]
[310309035,1704471079512,-500.0,0.0003041,2]
[310309036,1704471079521,-802.02,0.0003041,2]
[310309037,1704471079531,-1336.26,0.0003041,2]
[310309038,1704471079540,-537.87,0.0003041,2]
[310309039,1704471079550,-500.0,0.0003041,2]
[310309040,1704471079559,-500.0,0.0003041,2]
[310309041,1704471079569,-500.0,0.0003041,2]
[310309042,1704471079578,-500.0,0.0003041,2]
[310309043,1704471079587,-3771.03,0.0003041,2]
[310309044,1704471079596,-500.0,0.0003041,2]
[310309045,1704471079606,-500.0,0.0003041,2]
[310309046,1704471079615,-500.0,0.0003041,2]
[310309047,1704471079625,-500.0,0.0003041,2]
[310309048,1704471079636,-525.81,0.0003041,2]
[310309049,1704471079645,-500.0,0.0003041,2]
[310309050,1704471079655,-500.0,0.0003041,2]
[310309051,1704471079869,-500.0,0.0003041,2]
[310309052,1704471079879,-273.55539103,0.0003041,2]
[310309053,1704471079888,-500.0,0.0003041,2]
[310309054,1704471079898,-500.0,0.0003041,2]
[310309055,1704471079908,-500.0,0.0003041,2]
[310309056,1704471079917,-500.0,0.0003041,2]
[310309057,1704471079926,-500.0,0.0003041,2]
[310309058,1704471079935,-500.0,0.0003041,2]
[310309059,1704471079945,-776.01,0.0003041,2]
[310309060,1704471079954,-500.0,0.0003041,2]
[310309061,1704471079965,-3060.91,0.0003041,2]
[310309062,1704471079974,-500.0,0.0003041,2]
[310309063,1704471079983,-13727.19,0.0003041,2]
[310309064,1704471079993,-500.0,0.0003041,2]
[310309065,1704471080002,-500.0,0.0003041,2]
[310309066,1704471080012,-500.0,0.0003041,2]
[310309067,1704471080022,-1204.63,0.0003041,2]
[310309068,1704471080032,-500.0,0.0003041,2]
[310309069,1704471080042,-769.65,0.0003041,2]
[310309070,1704471080052,-500.0,0.0003041,2]
[310309071,1704471080062,-3709.47,0.0003041,2]
[310309072,1704471080071,-500.0,0.0003041,2]
[310309073,1704471080081,-537.11,0.0003041,2]
[310309074,1704471080091,-458.0975686,0.0003041,2]
[310309075,1704471080100,-4626.56,0.0003041,2]
[310309076,1704471080110,-500.0,0.0003041,2]
[310309077,1704471080119,-500.0,0.0003041,2]
[310309078,1704471080129,-500.0,0.0003041,2]
[310309079,1704471080139,-500.0,0.0003041,2]
[310309080,1704471080148,-500.0,0.0003041,2]
[310309081,1704471080158,-1733.54,0.0003041,2]
[310309082,1704471080167,-500.0,0.0003041,2]
[310309083,1704471080177,-3029.39,0.0003041,2]
[310309084,1704471080186,-500.0,0.0003041,2]
[310309085,1704471080195,-9181.09,0.0003041,2]
[310309086,1704471080205,-5426.23,0.0003041,2]
[310309087,1704471080215,-5834.39,0.0003041,2]
[310309088,1704471080225,-740.27,0.0003041,2]
[310309089,1704471080234,-500.0,0.0003041,2]
[310309090,1704471080243,-500.0,0.0003041,2]
[310309091,1704471080253,-500.0,0.0003041,2]
[310309092,1704471080263,-500.0,0.0003041,2]
[310309093,1704471080272,-799.71,0.0003041,2]
[310309094,1704471080282,-500.0,0.0003041,2]
[310309095,1704471080291,-500.0,0.0003041,2]
[310309096,1704471080301,-4345.18,0.0003041,2]
[310309097,1704471080310,-725.16,0.0003041,2]
[310309098,1704471080319,-500.0,0.0003041,2]
[310309099,1704471080329,-500.0,0.0003041,2]
[310309100,1704471080339,-500.0,0.0003041,2]
[310309101,1704471080349,-500.0,0.0003041,2]
[310309102,1704471080358,-30937.37,0.0003041,2]
[310309103,1704471080368,-821.62,0.0003041,2]
[310309104,1704471080377,-500.0,0.0003041,2]
[310309105,1704471080387,-500.0,0.0003041,2]
[310309106,1704471080396,-1420.61,0.0003041,2]
[310309107,1704471080406,-500.0,0.0003041,2]
[310309108,1704471080416,-500.0,0.0003041,2]
[310309109,1704471080425,-500.0,0.0003041,2]
[310309110,1704471080434,-749.5,0.0003041,2]
[310309111,1704471080443,-675.77,0.0003041,2]
[310309112,1704471080452,-500.0,0.0003041,2]
[310309113,1704471080461,-900.8,0.0003041,2]
[310309114,1704471080471,-699.84,0.0003041,2]
[310309115,1704471080481,-500.0,0.0003041,2]
[310309116,1704471080491,-500.0,0.0003041,2]
[310309117,1704471080500,-500.0,0.0003041,2]
[310309118,1704471080509,-500.0,0.0003041,2]
[310309119,1704471080519,-500.0,0.0003041,2]
[310309120,1704471080528,-500.0,0.0003041,2]
[310309121,1704471080537,-500.0,0.0003041,2]
[310309122,1704471080547,-605.12,0.0003041,2]
[310309123,1704471080557,-809.12,0.0003041,2]
[310309124,1704471080566,-500.0,0.0003041,2]